fUST/lending_fUST_20250930
["ID","MTS","AMOUNT","RATE_DAILY","PERIOD"]
[388453914,1759175447767,-232.713564,0.00023171,7]
[388453915,1759175447776,-232.713564,0.00023171,7]
[388453916,1759175447789,-232.713564,0.00023171,7]
[388453917,1759175447803,-232.713564,0.00023171,7]
[388453918,1759175447814,-151.0,0.00023171,7]
[388453919,1759175447828,-480.0,0.00023171,2]
[388453920,1759175447839,-151.0,0.00023171,7]
[388453921,1759175447850,-568.95,0.00023171,2]
[388453922,1759175447861,-298.945,0.00023171,7]
[388453923,1759175447872,-480.0,0.00023171,2]
[388453924,1759175447883,-480.0,0.00023171,2]
[388453925,1759175447894,-151.0,0.00023171,7]
[388453926,1759175447906,-151.0,0.00023171,7]
[388453927,1759175447918,-151.0,0.00023171,7]
[388453928,1759175447930,-151.0,0.00023171,7]
[388453929,1759175447941,-151.0,0.00023171,7]
[388453930,1759175447952,-151.0,0.00023171,7]
[388453931,1759175447963,-151.0,0.00023171,7]
[388453932,1759175447975,-286.679828,0.00023171,7]
[388453933,1759175447986,-286.679828,0.00023171,7]
[388453934,1759175447999,-286.679828,0.00023171,7]
[388453935,1759175448010,-286.679828,0.00023171,7]
[388453936,1759175448021,-151.0,0.00023171,7]
[388453937,1759175448032,-151.0,0.00023171,7]
[388453938,1759175448043,-480.0,0.00023171,2]
[388453939,1759175448054,-480.0,0.00023171,2]
[388453940,1759175448065,-151.0,0.00023171,7]
[388453941,1759175448078,-151.0,0.00023171,7]
[388453942,1759175448090,-151.0,0.00023171,7]
[388453943,1759175448102,-151.0,0.00023171,7]
[388453944,1759175448113,-151.0,0.00023171,7]
[388453945,1759175448126,-151.0,0.00023171,7]
[388453946,1759175448136,-151.0,0.00023171,7]
[388453947,1759175448147,-151.0,0.00023171,7]
[388453948,1759175448158,-173.461969,0.00023171,7]
[388453949,1759175448170,-10000.0,0.00023171,7]
[388453950,1759175448180,-151.0,0.00023171,7]
[388453951,1759175448192,-10000.0,0.00023171,7]
[388453952,1759175448203,-151.0,0.00023171,7]
[388453953,1759175448214,-10000.0,0.00023171,7]
[388453954,1759175448224,-151.0,0.00023171,7]
[388453955,1759175448236,-10000.0,0.00023171,7]
[388453956,1759175448247,-10000.0,0.00023171,7]
[388453957,1759175448258,-151.0,0.00023171,7]
[388453958,1759175448269,-1811.478022,0.00023171,7]
[388453959,1759175448280,-1811.478022,0.00023171,7]
[388453960,1759175448291,-151.0,0.00023171,7]
[388453961,1759175448303,-151.0,0.00023171,7]
[388453962,1759175448313,-151.0,0.00023171,7]
[388453963,1759175448326,-185.584951,0.00023171,7]
[388453964,1759175448338,-1811.478022,0.00023171,7]
[388453965,1759175448350,-1811.478022,0.00023171,7]
[388453966,1759175448361,-151.0,0.00023171,7]
[388453967,1759175448372,-199.780283,0.00023171,7]
[388453968,1759175448383,-199.780283,0.00023171,7]
[388453969,1759175448395,-151.0,0.00023171,7]
[388453970,1759175448406,-199.780283,0.00023171,7]
[388453971,1759175448417,-199.780283,0.00023171,7]
[388453972,1759175448428,-151.0,0.00023171,7]
[388453973,1759175448439,-151.0,0.00023171,7]
[388453974,1759175448450,-151.0,0.00023171,7]
[388453975,1759175448461,-151.0,0.00023171,7]
[388453976,1759175448472,-295.488946,0.00023171,7]
[388453977,1759175448484,-177.683661,0.00023171,7]
[388453978,1759175448494,-295.488946,0.00023171,7]
[388453979,1759175448505,-151.0,0.00023171,7]
[388453980,1759175448516,-295.488946,0.00023171,7]
[388453981,1759175448527,-156.050985,0.00023171,7]
[388453982,1759175448537,-295.488946,0.00023171,7]
[388453984,1759175448549,-151.0,0.00023171,7]
[388453986,1759175448559,-347.0,0.00023182,2]
[388453988,1759175448571,-8344.28963856,0.00023184,2]
[388453989,1759175448582,-250.49523772,0.00023194,2]
[388453991,1759175448594,-151.0,0.000232,5]
[388453992,1759175448605,-151.0,0.000232,10]
[388453994,1759175448618,-155.1244069,0.0002321,2]
[388453996,1759175448629,-800.0,0.00023216,2]
[388453998,1759175448640,-800.0,0.00023222,2]
[388453999,1759175448652,-350.1984968,0.00023237,2]
[388454001,1759175448663,-176.55544409,0.00023278,2]
[388454002,1759175448674,-151.0,0.00023288,7]
[388454003,1759175448686,-800.0,0.00023296,2]
[388454004,1759175448697,-151.0,0.000233,7]
[388454005,1759175448708,-151.0,0.000233,6]
[388454006,1759175448722,-151.0,0.000233,10]
[388454007,1759175448733,-13168.83517171,0.000233,7]
[388454008,1759175448743,-8344.28963856,0.00023321,2]
[388454009,1759175448753,-800.0,0.00023329,2]
[388454010,1759175448764,-800.0,0.00023332,2]
[388454011,1759175448774,-800.0,0.00023337,2]
[388454012,1759175448785,-800.0,0.00023339,2]
[388454013,1759175448795,-800.0,0.00023339,2]
[388454014,1759175448806,-479.94765416,0.00023343,2]
[388454015,1759175448817,-800.0,0.0002335,2]
[388454016,1759175448830,-800.0,0.00023352,2]
[388454017,1759175448841,-800.0,0.00023358,2]
[388454018,1759175448852,-480.0,0.00023363,2]
[388454019,1759175448863,-480.0,0.00023363,2]
[388454020,1759175448874,-480.0,0.00023363,2]
[388454021,1759175448885,-11323.72820893,0.00023364,2]
[388454022,1759175448896,-480.0,0.0002337,2]
[388454023,1759175448905,-480.0,0.0002337,2]
[388454024,1759175449151,-480.0,0.0002337,2]
[388454025,1759175449176,-1059.53,0.0002337,2]
[388454026,1759175449195,-480.0,0.0002337,2]
[388454027,1759175449204,-480.0,0.0002337,2]
[388454028,1759175449213,-510.01,0.0002337,2]
[388454029,1759175449223,-480.0,0.0002337,2]
[388454030,1759175449232,-592.09,0.0002337,2]
[388454031,1759175449242,-480.0,0.0002337,2]
[388454032,1759175449251,-942.5,0.0002337,2]
[388454033,1759175449261,-480.0,0.0002337,2]
[388454034,1759175449271,-940.77,0.0002337,2]
[388454035,1759175449280,-480.0,0.0002337,2]
[388454036,1759175449289,-480.0,0.0002337,2]
[388454037,1759175449299,-1335.3,0.0002337,2]
[388454038,1759175449308,-480.0,0.0002337,2]
[388454039,1759175449318,-944.07,0.0002337,2]
[388454040,1759175449328,-480.0,0.0002337,2]
[388454041,1759175449337,-560.97,0.0002337,2]
[388454042,1759175449347,-714.61,0.0002337,2]
[388454043,1759175449356,-480.0,0.0002337,2]
[388454044,1759175449366,-517.29,0.0002337,2]
[388454045,1759175449375,-1220.46,0.0002337,2]
[388454046,1759175449384,-520.52,0.0002337,2]
[388454047,1759175449394,-690.75,0.0002337,2]
[388454048,1759175449403,-480.0,0.0002337,2]
[388454049,1759175449412,-480.0,0.0002337,2]
[388454050,1759175449421,-480.0,0.0002337,2]
[388454051,1759175449430,-480.0,0.0002337,2]
[388454052,1759175449439,-583.16,0.0002337,2]
[388454053,1759175449449,-932.04,0.0002337,2]
[388454054,1759175449458,-919.61,0.0002337,2]
[388454055,1759175449467,-830.68,0.0002337,2]
[388454056,1759175449476,-480.0,0.0002337,2]
[388454057,1759175449486,-480.0,0.0002337,2]
[388454058,1759175449495,-480.0,0.0002337,2]
[388454059,1759175449504,-461.18980399,0.0002337,2]
[388454060,1759175449513,-709.63,0.0002337,2]
[388454061,1759175449523,-525.21,0.0002337,2]
[388454062,1759175449533,-584.79,0.0002337,2]
[388454063,1759175449542,-480.0,0.0002337,2]
[388454064,1759175449552,-774.22,0.0002337,2]
[388454065,1759175449562,-480.0,0.0002337,2]
[388454066,1759175449571,-480.0,0.0002337,2]
[388454067,1759175449581,-906.55,0.0002337,2]
[388454068,1759175449590,-623.42,0.0002337,2]
[388454069,1759175449600,-1981.92,0.0002337,2]
[388454070,1759175449610,-480.0,0.0002337,2]
[388454071,1759175449620,-771.14,0.0002337,2]
[388454072,1759175449629,-1633.82,0.0002337,2]
[388454073,1759175449639,-480.0,0.0002337,2]
[388454074,1759175449649,-480.0,0.0002337,2]
[388454075,1759175449659,-1141.41,0.0002337,2]
[388454076,1759175449669,-1057.06,0.0002337,2]
[388454077,1759175449678,-480.0,0.0002337,2]
[388454078,1759175449688,-533.47,0.0002337,2]
[388454079,1759175449697,-1364.74,0.0002337,2]
[388454080,1759175449707,-1215.29,0.0002337,2]
[388454081,1759175449721,-215.55251,0.0002337,2]
[388454082,1759175449731,-480.0,0.0002337,2]
[388454083,1759175449740,-650.23,0.0002337,2]
[388454084,1759175449749,-480.0,0.0002337,2]
[388454085,1759175449761,-5421.03,0.0002337,2]
[388454086,1759175449770,-823.2,0.0002337,2]
[388454087,1759175449780,-480.0,0.0002337,2]
[388454088,1759175449789,-1305.22,0.0002337,2]
[388454089,1759175449799,-527.73,0.0002337,2]
[388454090,1759175449808,-2525.06,0.0002337,2]
[388454091,1759175449819,-480.0,0.0002337,2]
[388454092,1759175449828,-2306.7,0.0002337,2]
[388454093,1759175449838,-667.4,0.0002337,2]
[388454094,1759175449847,-1348.8,0.0002337,2]
[388454095,1759175449857,-736.28,0.0002337,2]
[388454096,1759175449866,-550.18,0.0002337,2]
[388454097,1759175449875,-5517.91,0.0002337,2]
[388454098,1759175449884,-1042.2,0.0002337,2]
[388454099,1759175449894,-2461.32,0.0002337,2]
[388454100,1759175449903,-817.56,0.0002337,2]
[388454101,1759175449913,-2768.83,0.0002337,2]
[388454102,1759175449923,-899.26,0.0002337,2]
[388454103,1759175449933,-628.9,0.0002337,2]
[388454104,1759175449942,-480.0,0.0002337,2]
[388454105,1759175449951,-741.9,0.0002337,2]
[388454106,1759175449961,-866.04,0.0002337,2]
[388454107,1759175449970,-633.11,0.0002337,2]
[388454108,1759175449979,-5907.31,0.0002337,2]
[388454109,1759175449988,-480.0,0.0002337,2]
[388454110,1759175449998,-630.21,0.0002337,2]
[388454111,1759175450007,-1483.05,0.0002337,2]
[388454112,1759175450016,-1935.37,0.0002337,2]
[388454113,1759175450025,-1360.56,0.0002337,2]
[388454114,1759175450034,-1101.37,0.0002337,2]
[388454115,1759175450043,-546.45,0.0002337,2]
[388454116,1759175450053,-328.78798777,0.0002337,2]
[388454117,1759175450062,-500.0,0.0002337,2]
[388454118,1759175450072,-480.0,0.00023372,2]
[388454119,1759175450081,-480.0,0.00023372,2]
[388454120,1759175450090,-480.0,0.00023372,2]
[388454121,1759175450099,-480.0,0.00023372,2]
[388454122,1759175450108,-480.0,0.00023372,2]
[388454123,1759175450117,-480.0,0.00023372,2]
[388454124,1759175450127,-151.0,0.00023372,7]
[388454125,1759175450136,-199.442798,0.00023372,7]
[388454126,1759175450146,-199.442798,0.00023372,7]
[388454127,1759175450155,-151.0,0.00023372,7]
[388454128,1759175450165,-151.0,0.00023372,7]
[388454129,1759175450174,-199.442798,0.00023372,7]
[388454130,1759175450183,-151.0,0.00023372,7]
[388454131,1759175450192,-199.442798,0.00023372,7]
[388454132,1759175450202,-151.0,0.00023372,7]
[388454133,1759175450211,-151.0,0.00023372,7]
[388454134,1759175450221,-151.0,0.00023372,7]
[388454135,1759175450231,-480.0,0.00023373,2]
[388454136,1759175450240,-490.59,0.00023373,2]
[388454137,1759175450250,-480.0,0.00023373,2]
[388454138,1759175450259,-500.0,0.00023374,2]
[388454139,1759175450268,-509.94,0.00023374,2]
[388454140,1759175450279,-480.0,0.00023374,2]
[388454141,1759175450288,-480.0,0.00023374,2]
[388454142,1759175450297,-480.0,0.00023374,2]
[388454143,1759175450307,-480.0,0.00023374,2]
[388454144,1759175450316,-480.0,0.00023374,2]
[388454145,1759175450327,-480.0,0.00023374,2]
[388454146,1759175450336,-480.0,0.00023374,2]
[388454147,1759175450345,-480.0,0.00023374,2]
[388454148,1759175450355,-524.38,0.00023374,2]
[388454149,1759175450365,-480.0,0.00023374,2]
[388454150,1759175450374,-480.0,0.00023374,2]
[388454151,1759175450383,-1015.13,0.00023374,2]
[388454152,1759175450392,-480.0,0.00023374,2]
[388454153,1759175450402,-480.0,0.00023374,2]
[388454154,1759175450412,-480.0,0.00023374,2]
[388454155,1759175450421,-1868.33,0.00023374,2]
[388454156,1759175450430,-528.3,0.00023374,2]
[388454157,1759175450440,-480.0,0.00023374,2]
[388454158,1759175450449,-480.0,0.00023374,2]
[388454159,1759175450458,-480.0,0.00023374,2]
[388454160,1759175450468,-480.0,0.00023374,2]
[388454161,1759175450477,-2358.96,0.00023374,2]
[388454162,1759175450487,-480.0,0.00023374,2]
[388454163,1759175450496,-480.0,0.00023374,2]
[388454164,1759175450506,-762.69,0.00023374,2]
[388454165,1759175450515,-596.27,0.00023374,2]
[388454166,1759175450524,-480.0,0.00023374,2]
[388454167,1759175450534,-632.19,0.00023374,2]
[388454168,1759175450543,-549.62,0.00023374,2]
[388454169,1759175450552,-1428.69,0.00023374,2]
[388454170,1759175450562,-480.0,0.00023374,2]
[388454171,1759175450571,-966.88,0.00023374,2]
[388454172,1759175450580,-408.69703234,0.00023374,2]
[388454173,1759175450589,-646.13,0.00023374,2]
[388454174,1759175450599,-480.0,0.00023374,2]
[388454175,1759175450609,-497.29,0.00023374,2]
[388454176,1759175450618,-1229.7,0.00023374,2]
[388454177,1759175450627,-383.21505219,0.00023374,2]
[388454178,1759175450636,-480.0,0.00023374,2]
[388454179,1759175450646,-480.0,0.00023374,2]
[388454180,1759175450655,-480.0,0.00023374,2]
[388454181,1759175450664,-598.19,0.00023374,2]
[388454182,1759175450674,-546.19,0.00023374,2]
[388454183,1759175450683,-535.91,0.00023374,2]
[388454184,1759175450692,-480.0,0.00023374,2]
[388454185,1759175450701,-1981.01,0.00023374,2]
[388454186,1759175450713,-480.0,0.00023374,2]
[388454187,1759175450723,-480.0,0.00023374,2]
[388454188,1759175450732,-480.0,0.00023374,2]
[388454189,1759175450742,-480.0,0.00023374,2]
[388454190,1759175450751,-480.0,0.00023374,2]
[388454191,1759175450760,-480.0,0.00023374,2]
[388454192,1759175450770,-672.43,0.00023374,2]
[388454193,1759175450780,-480.0,0.00023374,2]
[388454194,1759175450789,-489.12,0.00023374,2]
[388454195,1759175450799,-632.71,0.00023374,2]
[388454196,1759175450809,-573.34,0.00023374,2]
[388454197,1759175450819,-2197.93,0.00023374,2]
[388454198,1759175450828,-939.7,0.00023374,2]
[388454199,1759175450838,-480.0,0.00023374,2]
[388454200,1759175450847,-480.0,0.00023374,2]
[388454201,1759175450856,-564.41,0.00023374,2]
[388454202,1759175450866,-480.0,0.00023374,2]
[388454203,1759175450875,-2026.91,0.00023374,2]
[388454204,1759175450884,-554.48,0.00023374,2]
[388454205,1759175450893,-480.0,0.00023374,2]
[388454206,1759175450903,-513.92,0.00023374,2]
[388454207,1759175450912,-758.25,0.00023374,2]
[388454208,1759175450922,-3730.17,0.00023374,2]
[388454209,1759175450932,-480.0,0.00023374,2]
[388454210,1759175450941,-480.0,0.00023374,2]
[388454211,1759175450951,-567.75143692,0.00023374,2]
[388454212,1759175450960,-480.0,0.00023374,2]
[388454213,1759175450970,-9332.11,0.00023374,2]
[388454214,1759175450981,-671.44,0.00023374,2]
[388454215,1759175450990,-480.0,0.00023374,2]
[388454216,1759175451000,-480.0,0.00023374,2]
[388454217,1759175451010,-480.0,0.00023374,2]
[388454218,1759175451019,-480.0,0.00023374,2]
[388454219,1759175451028,-1501.44,0.00023374,2]
[388454220,1759175451038,-480.0,0.00023374,2]
[388454221,1759175451048,-1367.64,0.00023374,2]
[388454222,1759175451057,-480.0,0.00023374,2]
[388454223,1759175451068,-3789.72,0.00023374,2]
[388454224,1759175451077,-1349.65,0.00023374,2]
[388454225,1759175451086,-3131.58,0.00023374,2]
[388454226,1759175451095,-871.93,0.00023374,2]
[388454227,1759175451104,-2103.73,0.00023374,2]
[388454228,1759175451113,-480.0,0.00023374,2]
[388454229,1759175451122,-480.0,0.00023374,2]
[388454230,1759175451132,-480.0,0.00023374,2]
[388454231,1759175451142,-480.0,0.00023374,2]
[388454232,1759175451151,-480.0,0.00023374,2]
[388454233,1759175451160,-480.0,0.00023374,2]
[388454234,1759175451170,-522.75,0.00023374,2]
[388454235,1759175451179,-480.0,0.00023374,2]
[388454236,1759175451189,-151.0,0.00023374,7]
[388454237,1759175451199,-480.0,0.00023378,2]
[388454238,1759175451208,-480.0,0.00023378,2]
[388454239,1759175451218,-151.0,0.00023378,7]
[388454240,1759175451228,-151.0,0.00023378,7]
[388454241,1759175451238,-151.0,0.00023378,7]
[388454242,1759175451247,-217.354586,0.00023378,7]
[388454243,1759175451257,-151.0,0.00023378,7]
[388454244,1759175451266,-151.0,0.00023378,7]
[388454245,1759175451275,-151.0,0.00023378,7]
[388454246,1759175451285,-151.0,0.00023378,7]
[388454247,1759175451295,-151.0,0.00023378,7]
[388454248,1759175451304,-151.0,0.00023378,7]
[388454249,1759175451314,-151.0,0.00023378,7]
[388454250,1759175451325,-151.0,0.00023378,7]
[388454251,1759175451335,-151.0,0.00023378,7]
[388454252,1759175451344,-151.0,0.00023378,7]
[388454253,1759175451354,-151.0,0.00023378,7]
[388454254,1759175451363,-151.0,0.00023378,7]
[388454255,1759175451373,-151.0,0.00023378,7]
[388454256,1759175451383,-151.0,0.00023378,7]
[388454257,1759175451393,-151.0,0.00023378,7]
[388454258,1759175451403,-298.269547,0.00023378,7]
[388454259,1759175451412,-800.0,0.00023378,2]
[388454260,1759175451423,-151.0,0.00023378,7]
[388454261,1759175451433,-151.0,0.00023378,7]
[388454262,1759175451442,-151.0,0.00023378,7]
[388454263,1759175451452,-232.713564,0.00023378,7]
[388454264,1759175451462,-232.713564,0.00023378,7]
[388454265,1759175451473,-232.713564,0.00023378,7]
[388454266,1759175451483,-232.713564,0.00023378,7]
[388454267,1759175451493,-151.0,0.00023378,7]
[388454268,1759175451502,-151.0,0.00023378,7]
[388454269,1759175451512,-151.0,0.00023378,7]
[388454270,1759175451522,-151.0,0.00023378,7]
[388454271,1759175451532,-800.0,0.00023384,2]
[388454272,1759175451542,-800.0,0.00023392,2]
[388454273,1759175451552,-151.0,0.000234,5]
[388454274,1759175451561,-800.0,0.00023403,2]
[388454275,1759175451574,-800.0,0.00023405,2]
[388454276,1759175451584,-800.0,0.00023406,2]
[388454277,1759175451594,-168.0,0.00023406,2]
[388454278,1759175451604,-800.0,0.00023412,2]
[388454279,1759175451614,-1000.0,0.00023421,2]
[388454280,1759175451624,-1000.0,0.00023421,2]
[388454281,1759175451634,-1000.0,0.00023421,2]
[388454282,1759175451644,-1000.0,0.00023421,2]
[388454283,1759175451653,-1000.0,0.00023421,2]
[388454284,1759175451663,-1000.0,0.00023421,2]
[388454285,1759175451672,-500.0,0.00023421,2]
[388454286,1759175451682,-885.60296776,0.00023421,2]
[388454287,1759175451692,-1000.0,0.00023421,2]
[388454288,1759175451701,-1069.89463782,0.00023421,2]
[388454289,1759175451711,-1000.0,0.00023421,2]
[388454290,1759175451723,-1000.0,0.00023421,2]
[388454291,1759175451732,-1000.0,0.00023421,2]
[388454292,1759175451741,-1000.0,0.00023421,2]
[388454293,1759175451751,-1000.0,0.00023421,2]
[388454294,1759175451761,-151.0,0.00023421,7]
[388454295,1759175451770,-151.0,0.00023421,7]
[388454296,1759175451780,-164.207753,0.00023421,7]
[388454297,1759175451791,-151.0,0.00023421,7]
[388454298,1759175451801,-151.0,0.00023421,7]
[388454299,1759175451810,-151.0,0.00023421,7]
[388454300,1759175451820,-151.0,0.00023421,7]
[388454301,1759175451830,-151.0,0.00023421,7]
[388454302,1759175451840,-189.40172226,0.00023421,7]
[388454303,1759175451849,-463.655782,0.00023421,7]
[388454304,1759175451859,-463.655782,0.00023421,7]
[388454305,1759175451868,-463.655782,0.00023421,7]
[388454306,1759175451877,-463.655782,0.00023421,7]
[388454307,1759175451886,-151.0,0.00023421,7]
[388454308,1759175451896,-151.0,0.00023421,7]
[388454309,1759175451906,-151.0,0.00023421,7]
[388454310,1759175451915,-151.0,0.00023421,7]
[388454311,1759175451925,-286.679828,0.00023421,7]
[388454312,1759175451935,-286.679828,0.00023421,7]
[388454313,1759175451943,-286.679828,0.00023421,7]
[388454314,1759175451953,-286.679828,0.00023421,7]
[388454315,1759175451962,-151.0,0.00023421,7]
[388454316,1759175451971,-151.0,0.00023421,7]
[388454317,1759175451980,-153.732048,0.00023421,7]
[388454318,1759175451990,-151.0,0.00023421,7]
[388454319,1759175451999,-151.0,0.00023421,7]
[388454320,1759175452009,-151.0,0.00023421,7]
[388454321,1759175452018,-151.0,0.00023421,7]
[388454322,1759175452028,-10000.0,0.00023421,7]
[388454323,1759175452037,-151.0,0.00023421,7]
[388454324,1759175452046,-10000.0,0.00023421,7]
[388454325,1759175452056,-224.564691,0.00023421,7]
[388454326,1759175452066,-10000.0,0.00023421,7]
[388454327,1759175452076,-151.0,0.00023421,7]
[388454328,1759175452086,-10000.0,0.00023421,7]
[388454329,1759175452095,-10000.0,0.00023421,7]
[388454330,1759175452105,-151.0,0.00023421,7]
[388454331,1759175452114,-151.0,0.00023421,7]
[388454332,1759175452124,-1811.478022,0.00023421,7]
[388454333,1759175452132,-1811.478022,0.00023421,7]
[388454334,1759175452142,-151.0,0.00023421,7]
[388454335,1759175452152,-151.0,0.00023421,7]
[388454336,1759175452161,-152.036151,0.00023421,7]
[388454337,1759175452171,-1811.478022,0.00023421,7]
[388454338,1759175452180,-1811.478022,0.00023421,7]
[388454339,1759175452189,-151.0,0.00023421,7]
[388454340,1759175452198,-199.780283,0.00023421,7]
[388454341,1759175452208,-199.780283,0.00023421,7]
[388454342,1759175452217,-151.0,0.00023421,7]
[388454343,1759175452226,-199.780283,0.00023421,7]
[388454344,1759175452235,-199.780283,0.00023421,7]
[388454345,1759175452244,-151.0,0.00023421,7]
[388454346,1759175452254,-159.610699,0.00023421,7]
[388454347,1759175452263,-295.488946,0.00023421,7]
[388454348,1759175452272,-295.488946,0.00023421,7]
[388454349,1759175452282,-151.0,0.00023421,7]
[388454350,1759175452443,-295.488946,0.00023421,7]
[388454351,1759175452453,-295.488946,0.00023421,7]
[388454352,1759175452463,-151.0,0.00023431,2]
[388454353,1759175452472,-160.0,0.00023437,3]
[388454354,1759175452482,-800.0,0.00023439,2]
[388454355,1759175452491,-480.0,0.00023445,2]
[388454356,1759175452501,-480.0,0.00023445,2]
[388454357,1759175452510,-480.0,0.00023445,2]
[388454358,1759175452520,-480.0,0.00023445,2]
[388454359,1759175452530,-647.82,0.00023445,2]
[388454360,1759175452539,-480.0,0.00023445,2]
[388454361,1759175452548,-480.0,0.00023445,2]
[388454362,1759175452558,-480.0,0.00023445,2]
[388454363,1759175452567,-520.26,0.00023445,2]
[388454364,1759175452578,-480.0,0.00023445,2]
[388454365,1759175452587,-641.12,0.00023445,2]
[388454366,1759175452596,-615.42,0.00023445,2]
[388454367,1759175452606,-480.0,0.00023445,2]
[388454368,1759175452615,-480.0,0.00023445,2]
[388454369,1759175452625,-480.0,0.00023445,2]
[388454370,1759175452634,-480.0,0.00023445,2]
[388454371,1759175452643,-798.31,0.00023445,2]
[388454372,1759175452652,-547.0156142,0.00023445,2]
[388454373,1759175452662,-480.0,0.00023445,2]
[388454374,1759175452671,-480.0,0.00023445,2]
[388454375,1759175452680,-480.0,0.00023445,2]
[388454376,1759175452690,-480.0,0.00023445,2]
[388454377,1759175452699,-591.83787932,0.00023445,2]
[388454378,1759175452710,-685.03,0.00023445,2]
[388454379,1759175452723,-594.81,0.00023445,2]
[388454380,1759175452732,-480.0,0.00023445,2]
[388454381,1759175452742,-480.0,0.00023445,2]
[388454382,1759175452751,-480.0,0.00023445,2]
[388454383,1759175452760,-1601.04,0.00023445,2]
[388454384,1759175452769,-151.0,0.00023445,7]
[388454385,1759175452779,-480.0,0.00023445,2]
[388454386,1759175452788,-480.0,0.00023445,2]
[388454387,1759175452797,-714.34,0.00023445,2]
[388454388,1759175452807,-1069.38,0.00023445,2]
[388454389,1759175452816,-522.42,0.00023445,2]
[388454390,1759175452826,-480.0,0.00023445,2]
[388454391,1759175452835,-480.0,0.00023445,2]
[388454392,1759175452844,-151.0,0.00023445,7]
[388454393,1759175452853,-151.0,0.00023445,7]
[388454394,1759175452863,-575.73,0.00023445,2]
[388454395,1759175452872,-151.0,0.00023445,7]
[388454396,1759175452881,-480.0,0.00023445,2]
[388454397,1759175452890,-249.04707492,0.00023445,2]
[388454398,1759175452900,-480.0,0.00023445,2]
[388454399,1759175452909,-480.0,0.00023445,2]
[388454400,1759175452918,-480.0,0.00023445,2]
[388454401,1759175452927,-500.0,0.00023445,2]
[388454402,1759175452936,-480.0,0.00023445,2]
[388454403,1759175452945,-480.0,0.00023445,2]
[388454404,1759175452955,-480.0,0.00023445,2]
[388454405,1759175452964,-480.0,0.00023445,2]
[388454406,1759175452973,-1693.78,0.00023445,2]
[388454407,1759175452982,-480.0,0.00023445,2]
[388454408,1759175452992,-522.58,0.00023445,2]
[388454409,1759175453002,-480.0,0.00023445,2]
[388454410,1759175453011,-550.3,0.00023445,2]
[388454411,1759175453020,-480.0,0.00023445,2]
[388454412,1759175453030,-480.0,0.00023445,2]
[388454413,1759175453039,-480.0,0.00023445,2]
[388454414,1759175453048,-563.72,0.00023445,2]
[388454415,1759175453059,-480.0,0.00023445,2]
[388454416,1759175453068,-480.0,0.00023445,2]
[388454417,1759175453078,-480.0,0.00023445,2]
[388454418,1759175453087,-480.0,0.00023445,2]
[388454419,1759175453097,-480.0,0.00023445,2]
[388454420,1759175453107,-480.0,0.00023445,2]
[388454421,1759175453117,-480.0,0.00023445,2]